bitfinex-derivatives/quotes_BTCF0:USTF0_20250330
["timestamp","ask_amount","ask_price","bid_price","bid_amount"]
[1743346869559,0.21167501,82839.0,82838.0,8e-05]
[1743346869863,0.2072219,82839.0,82838.0,8e-05]
[1743346870862,0.2072219,82839.0,82838.0,0.00072]
[1743346871158,0.21666531,82839.0,82838.0,8e-05]
[1743346871563,0.21466531,82839.0,82838.0,8e-05]
[1743346871754,0.21666531,82839.0,82838.0,8e-05]
[1743346872166,0.1207663,82837.0,82836.0,0.120765]
[1743346872462,0.13160972,82837.0,82836.0,0.13499688]
[1743346872654,0.21260972,82837.0,82836.0,0.01423188]
[1743346872855,0.21260972,82837.0,82836.0,0.00076]
[1743346873053,0.1207663,82836.0,82835.0,0.00018109]
[1743346873260,0.13156971,82836.0,82835.0,0.00018109]
[1743346873468,0.21256971,82836.0,82835.0,0.00026109]
[1743346873667,0.21267332,82836.0,82835.0,0.00162109]
[1743346874057,0.21267332,82836.0,82835.0,0.01600496]
[1743346874361,0.21267332,82836.0,82835.0,0.00162109]
[1743346874968,0.21267332,82836.0,82835.0,0.01594726]
[1743346875154,0.21467332,82836.0,82835.0,0.01458726]
[1743346875351,0.21467332,82836.0,82835.0,0.01530726]
[1743346875967,0.21467332,82836.0,82835.0,0.13607496]
[1743346876266,0.21667332,82836.0,82835.0,0.13607496]
[1743346876967,0.2071263,82836.0,82835.0,0.13607496]
[1743346877163,0.2051263,82836.0,82835.0,0.13607496]
[1743346877367,0.2061263,82836.0,82835.0,0.13607496]
[1743346879373,0.2061263,82836.0,82835.0,0.01530726]
[1743346879566,0.2041263,82836.0,82835.0,0.01458726]
[1743346879762,0.2051263,82836.0,82835.0,0.01534726]
[1743346880169,0.2051263,82836.0,82835.0,0.05474726]
[1743346880976,0.2051263,82836.0,82835.0,0.01534726]
[1743346881170,0.2041263,82836.0,82835.0,0.01534726]
[1743346881371,0.2061263,82836.0,82835.0,0.01458726]
[1743346881968,0.21557011,82836.0,82835.0,0.01458726]
[1743346882873,0.33973011,82836.0,82835.0,0.01458726]
[1743346883376,0.33982142,82836.0,82835.0,0.00026109]
[1743346884178,0.33982142,82836.0,82835.0,0.00018109]
[1743346885081,0.3537106,82836.0,82835.0,0.00018109]
[1743346886968,0.1207677,82835.0,82834.0,8e-05]
[1743346887166,0.49250283,82835.0,82834.0,8e-05]
[1743346887472,0.1207765,82829.0,82828.0,8e-05]
[1743346887669,0.1207925,82819.0,82818.0,0.1207919]
[1743346887870,0.61524762,82819.0,82818.0,0.1995119]
[1743346888071,0.69900762,82819.0,82818.0,0.07872]
[1743346888679,0.69900762,82819.0,82818.0,0.07808]
[1743346888873,0.69900762,82819.0,82818.0,0.07872]
[1743346889073,0.69900762,82819.0,82818.0,0.08172]
[1743346889578,0.69900762,82819.0,82818.0,0.08108]
[1743346889873,0.69900762,82819.0,82818.0,0.08172]
[1743346890074,0.69900762,82819.0,82818.0,0.0431]
[1743346890276,0.69900762,82819.0,82818.0,0.05744798]
[1743346890479,0.69900762,82819.0,82818.0,0.09834798]
[1743346891070,0.69900762,82819.0,82818.0,0.09898798]
[1743346891576,0.69900762,82819.0,82818.0,0.09734798]
[1743346891972,0.69900762,82819.0,82818.0,0.05644798]
[1743346894177,0.69900762,82819.0,82818.0,0.09746798]
[1743346894387,0.69900762,82819.0,82818.0,0.09674798]
[1743346896281,0.33820762,82819.0,82818.0,0.09674798]
[1743346896485,0.69900762,82819.0,82818.0,0.09674798]
[1743346897778,0.69900762,82819.0,82818.0,0.09738798]
[1743346898587,0.69900762,82819.0,82818.0,0.09674798]
[1743346898785,0.69900762,82819.0,82818.0,0.21818048]
[1743346899286,0.69902093,82819.0,82818.0,0.21818048]
[1743346899688,0.69902093,82819.0,82818.0,0.09738798]
[1743346900287,0.69902093,82819.0,82818.0,0.09674798]
[1743346900477,0.69902093,82819.0,82818.0,0.05644798]
[1743346900682,0.73982093,82819.0,82818.0,0.004]
[1743346904290,0.69902093,82819.0,82818.0,0.004]
[1743346904795,0.69902093,82819.0,82818.0,0.08192]
[1743346904980,0.69902093,82819.0,82818.0,0.0812]
[1743346905181,0.69902093,82819.0,82818.0,0.0415]
[1743346905579,0.73642093,82819.0,82818.0,0.0415]
[1743346906084,0.97590684,82819.0,82818.0,0.0415]
[1743346906586,0.85620077,82819.0,82818.0,0.1622925]
[1743346906781,0.85620077,82819.0,82818.0,0.1629325]
[1743346906981,0.89810077,82819.0,82818.0,0.0415]
[1743346907490,0.89810077,82819.0,82818.0,0.0837]
[1743346908388,0.89810077,82819.0,82818.0,0.2044925]
[1743346908593,0.89810077,82819.0,82818.0,0.2051325]
[1743346908890,0.93800077,82819.0,82818.0,0.2051325]
[1743346909092,0.57720077,82819.0,82818.0,0.2051325]
[1743346909283,0.93800077,82819.0,82818.0,0.2051325]
[1743346909482,0.57720077,82819.0,82818.0,0.2051325]
[1743346909687,0.89810077,82819.0,82818.0,0.2051325]
[1743346909879,0.65861486,82819.0,82818.0,0.2051325]
[1743346910089,0.61667486,82819.0,82818.0,0.2051325]
[1743346911095,0.61664483,82819.0,82818.0,0.2051325]
[1743346912190,0.25584483,82819.0,82818.0,0.2051325]
[1743346912383,0.61664483,82819.0,82818.0,0.2051325]
[1743346914880,0.13505233,82819.0,82818.0,0.2051325]
[1743346915192,0.12544,82819.0,82818.0,0.2051325]
[1743346915394,0.2462311,82819.0,82818.0,0.2051325]
[1743346915887,0.1221511,82819.0,82818.0,0.2051325]
[1743346916195,0.00136,82819.0,82818.0,0.2051325]
[1743346916894,0.00136,82819.0,82818.0,0.19231284]
[1743346917091,0.00136,82819.0,82818.0,1.69231284]
[1743346917296,0.1207868,82822.0,82819.0,0.181186]
[1743346917490,0.1207868,82822.0,82820.0,0.042]
[1743346917697,0.1222268,82822.0,82820.0,0.04268]
[1743346917892,0.1222268,82822.0,82821.0,0.043]
[1743346918087,0.1222268,82822.0,82821.0,0.04368]
[1743346918390,0.00144,82822.0,82821.0,0.1644682]
[1743346918786,0.18075037,82825.0,82824.0,0.1207838]
[1743346918988,0.18175037,82825.0,82824.0,0.1215038]
[1743346919895,0.18175037,82825.0,82824.0,0.1626038]
[1743346920399,0.1217823,82825.0,82824.0,0.1626038]
[1743346920690,0.2458623,82825.0,82824.0,0.1626038]
[1743346921092,0.2889623,82825.0,82824.0,0.1626038]
[1743346921397,0.29846766,82825.0,82824.0,0.1626038]
[1743346921594,0.29846766,82825.0,82824.0,0.1636038]
[1743346921783,0.17768536,82825.0,82824.0,0.1636038]
[1743346921983,0.13458536,82825.0,82824.0,0.1636038]
[1743346922498,0.12508,82825.0,82824.0,0.1636038]
[1743346922797,0.2458623,82825.0,82824.0,0.1636038]
[1743346923297,0.25533696,82825.0,82824.0,0.1636038]
[1743346924291,0.29743696,82825.0,82824.0,0.1636038]
[1743346927189,0.29743696,82825.0,82824.0,0.04282]
[1743346927893,0.29743696,82825.0,82824.0,0.08232]
[1743346928290,0.29743696,82825.0,82824.0,0.2031038]
[1743346928689,0.13455466,82825.0,82824.0,0.2031038]
[1743346928885,0.01047466,82825.0,82824.0,0.2031038]
[1743346929486,0.14496769,82827.0,82826.0,0.1207809]
[1743346929686,0.14560769,82827.0,82826.0,1.6215009]
[1743346929891,0.14560769,82827.0,82826.0,1.9823009]
[1743346930096,0.14496769,82827.0,82826.0,1.9823009]
[1743346930297,0.18075037,82833.0,82832.0,0.1207721]
[1743346930491,0.18075037,82833.0,82832.0,0.1214121]
[1743346930692,0.18139037,82833.0,82832.0,0.1214121]
[1743346931092,0.21717243,82838.0,82832.0,0.2024121]
[1743346931294,0.21717243,82838.0,82837.0,0.1207648]
[1743346931594,0.21781243,82838.0,82837.0,0.1214048]
[1743346931793,0.33857583,82838.0,82837.0,0.1214048]
[1743346932201,0.33857583,82838.0,82837.0,0.2064048]
[1743346932603,0.34157583,82838.0,82837.0,0.2064048]
[1743346933198,0.34457583,82838.0,82837.0,0.2064048]
[1743346933397,0.1274034,82838.0,82837.0,0.2064048]
[1743346933795,0.1274034,82838.0,82837.0,0.08564]
[1743346934002,0.1274034,82838.0,82837.0,0.1633648]
[1743346934198,0.3341034,82838.0,82837.0,0.1640448]
[1743346937609,0.21334,82838.0,82837.0,0.1640448]
[1743346939006,0.00664,82838.0,82837.0,0.1640448]
[1743346939200,0.00664,82838.0,82837.0,0.2035448]
[1743346940208,0.1274034,82838.0,82837.0,0.1640448]
[1743346941012,0.1690034,82838.0,82837.0,0.1640448]
[1743346941599,0.17860182,82838.0,82837.0,0.1640448]
[1743346942200,0.17860217,82838.0,82837.0,0.1640448]
[1743346942608,0.34196217,82838.0,82837.0,0.00068]
[1743346944512,0.34196217,82838.0,82837.0,0.1214448]
[1743346945010,0.34196217,82838.0,82837.0,0.00068]
[1743346945216,0.22119877,82838.0,82835.0,0.1207677]
[1743346945410,0.1811529,82836.0,82835.0,0.1214077]
[1743346945609,0.19139167,82836.0,82835.0,0.1214077]
[1743346945811,0.27209167,82836.0,82835.0,0.1214077]
[1743346946408,0.05373877,82836.0,82835.0,0.1214077]
[1743346946714,0.00959877,82836.0,82835.0,0.2021077]
[1743346946901,0.01031877,82836.0,82835.0,0.2021077]
[1743346947106,0.01031877,82836.0,82835.0,1.7021077]
[1743346947308,0.00959877,82836.0,82835.0,1.7021077]
[1743346948211,0.006,82838.0,82835.0,1.7021077]
[1743346948212,0.006,82838.0,82837.0,0.1207648]
[1743346948415,0.01569479,82838.0,82837.0,0.1214048]
[1743346948613,0.00969479,82838.0,82837.0,0.1214048]
[1743346948828,0.00018109,82843.0,82842.0,0.1207575]
[1743346949011,0.00082109,82843.0,82842.0,0.1213975]
[1743346949614,0.00082109,82843.0,82842.0,0.2012975]
[1743346950105,0.12157719,82843.0,82842.0,0.2012975]
[1743346950414,0.12557719,82843.0,82842.0,0.2012975]
[1743346950613,0.00882109,82843.0,82842.0,0.2012975]
[1743346951211,0.00882109,82843.0,82842.0,0.21494609]
[1743346953611,0.00818109,82843.0,82842.0,0.21494609]
[1743346955422,0.12893719,82843.0,82842.0,0.21494609]
[1743346955614,0.12957719,82843.0,82842.0,0.21494609]
[1743346956022,0.12957719,82843.0,82842.0,0.57574609]
[1743346956321,0.00882109,82843.0,82842.0,0.57574609]
[1743346957622,0.04602109,82843.0,82842.0,0.57574609]
[1743346959017,0.04602109,82843.0,82842.0,0.21494609]
[1743346960817,0.0556478,82843.0,82842.0,0.21494609]
[1743346964033,0.05551193,82843.0,82842.0,0.21494609]
[1743346967729,0.09511193,82843.0,82842.0,0.21494609]
[1743346967927,0.09532348,82843.0,82842.0,0.21494609]
[1743346969133,0.21607958,82843.0,82842.0,0.21494609]
[1743346969825,0.21607734,82843.0,82842.0,0.21494609]
[1743346971732,0.09532124,82843.0,82842.0,0.21494609]
[1743346971934,0.09529037,82843.0,82842.0,0.21494609]
[1743346972135,0.05569037,82843.0,82842.0,0.21494609]
[1743346972324,0.01785037,82843.0,82842.0,0.21494609]
[1743346972531,0.0398,82848.0,82847.0,0.1207503]
[1743346972831,0.0796,82851.0,82850.0,0.1207459]
[1743346972832,0.0391,82851.0,82850.0,0.1207459]
[1743346973028,0.0399,82851.0,82850.0,0.1215459]
[1743346973430,0.0399,82851.0,82850.0,1.6215459]
[1743346973627,0.0391,82851.0,82850.0,1.6607459]
[1743346974321,0.0441,82851.0,82850.0,1.6607459]
[1743346975734,0.0451,82851.0,82850.0,1.6607459]
[1743346981036,0.0856,82851.0,82850.0,1.6607459]
[1743346982229,0.2063444,82851.0,82850.0,1.6607459]
[1743346982624,0.0856,82851.0,82850.0,1.6607459]
[1743346985431,0.0451,82851.0,82850.0,1.6607459]
[1743346987636,0.006,82851.0,82850.0,1.6607459]
[1743346990243,0.0425,82851.0,82850.0,1.6607459]
[1743346990641,0.0375,82851.0,82850.0,1.6607459]
[1743346991750,0.0395,82856.0,82855.0,0.1207386]
[1743346991951,0.1602371,82856.0,82855.0,0.00088]
[1743346992253,0.1608771,82856.0,82855.0,0.1207386]
[1743346992449,0.1608771,82856.0,82855.0,0.1215386]
[1743346992647,0.1602371,82856.0,82855.0,0.1616386]
[1743346993342,0.15714984,82856.0,82855.0,0.1616386]
[1743346993750,0.15814984,82856.0,82855.0,0.1616386]
[1743346994542,0.15914984,82856.0,82855.0,0.1616386]
[1743346995251,0.15914984,82856.0,82855.0,0.1215386]
[1743346995457,0.03841274,82856.0,82855.0,0.1215386]
[1743346995649,0.03841274,82856.0,82855.0,0.1594386]
[1743346996040,0.07951274,82856.0,82855.0,0.1594386]
[1743346997755,0.08031274,82856.0,82855.0,0.1594386]
[1743346998056,0.07951274,82856.0,82855.0,0.1594386]
[1743346998257,0.20024984,82856.0,82855.0,0.1594386]
[1743346999547,0.07951274,82856.0,82855.0,0.1594386]
[1743346999755,0.07951274,82856.0,82855.0,0.1974386]
[1743346999955,0.002,82856.0,82855.0,0.1974386]
[1743347000254,0.00018109,82859.0,82858.0,0.1207342]
[1743347000556,0.00018109,82859.0,82858.0,0.1215342]
[1743347000758,0.00098109,82859.0,82858.0,0.1215342]
[1743347000958,0.00098109,82859.0,82858.0,0.1974342]
[1743347001552,0.00298109,82859.0,82858.0,0.20647158]
[1743347001759,0.00218109,82859.0,82858.0,0.20647158]
[1743347008162,0.14246553,82872.0,82871.0,0.1207153]
[1743347008365,0.14326553,82872.0,82871.0,0.1215153]
[1743347008754,0.14326553,82872.0,82871.0,1.6215153]
[1743347008955,0.14246553,82873.0,82872.0,0.1207138]
[1743347009261,0.14246553,82873.0,82872.0,0.1942138]
[1743347009463,0.14338553,82873.0,82872.0,0.1942138]
[1743347009657,0.14338553,82873.0,82872.0,1.6942138]
[1743347009854,0.14246553,82873.0,82872.0,1.6942138]
[1743347010062,0.0368,82899.0,82872.0,2.48802]
[1743347010261,0.0728,82894.0,82889.0,0.08954392]
[1743347010565,0.0361,82893.0,82892.0,0.1206847]
[1743347010765,0.32337084,82907.0,82899.0,0.1206745]
[1743347010958,0.00124,82900.0,82899.0,0.1214745]
[1743347011354,0.03554,82900.0,82899.0,0.1214745]
[1743347011749,0.00124,82900.0,82899.0,0.1214745]
[1743347012257,0.03734,82900.0,82899.0,0.1214745]
[1743347012449,0.07164,82900.0,82899.0,0.1214745]
[1743347013457,0.0708,82900.0,82899.0,0.1214745]
[1743347014063,0.0708,82900.0,82899.0,0.13466232]
[1743347015857,0.0708,82900.0,82899.0,0.49546232]
[1743347021471,0.0716,82900.0,82899.0,0.49546232]
[1743347021970,0.0708,82900.0,82899.0,0.49546232]
[1743347022160,0.0716,82900.0,82899.0,0.49546232]
[1743347022360,0.0708,82900.0,82899.0,0.49546232]
[1743347024562,0.0708,82900.0,82899.0,0.53136232]
[1743347025463,0.0716,82900.0,82899.0,0.53136232]
[1743347026572,0.0716,82900.0,82899.0,0.56746232]
[1743347027267,0.0708,82900.0,82899.0,0.56746232]
[1743347029277,0.0716,82900.0,82899.0,0.56746232]
[1743347030770,0.0708,82900.0,82899.0,0.56746232]
[1743347031781,1e-08,82906.0,82905.0,0.1206658]
[1743347032088,0.2446505,82916.0,82907.0,0.1206629]
[1743347032286,0.124,82916.0,82907.0,1.9823429]
[1743347032590,0.1206535,82914.0,82913.0,0.1206541]
[1743347032888,0.1214535,82914.0,82913.0,0.1215341]
[1743347033273,0.0008,82914.0,82913.0,0.1922341]
[1743347034383,0.1214527,82914.0,82913.0,0.1922341]
[1743347034584,0.0008,82914.0,82913.0,0.1922341]
[1743347035491,0.0341,82914.0,82913.0,0.1922341]
[1743347036286,0.0728,82919.0,82915.0,0.0603255]
[1743347036590,0.03482,82919.0,82918.0,0.4814469]
[1743347036795,0.00018098,82922.0,82921.0,0.1206425]
[1743347037090,0.00110098,82922.0,82921.0,0.13469371]
[1743347037388,0.00018098,82922.0,82921.0,0.13469371]
[1743347038281,0.12082198,82922.0,82921.0,0.13469371]
[1743347038478,0.12154198,82922.0,82921.0,0.13469371]
[1743347038689,0.00098098,82922.0,82921.0,0.13469371]
[1743347038890,0.00018098,82922.0,82921.0,0.13469371]
[1743347039392,0.00098098,82922.0,82921.0,0.13469371]
[1743347039794,0.12162198,82922.0,82921.0,0.13469371]
[1743347039978,0.00098098,82922.0,82921.0,0.13469371]
[1743347040386,0.03688098,82922.0,82921.0,0.13469371]
[1743347040984,0.03688098,82922.0,82921.0,0.49549371]
[1743347041188,0.15752198,82922.0,82921.0,0.49549371]
[1743347041389,0.15832198,82922.0,82921.0,0.49549371]
[1743347042492,0.15832198,82922.0,82921.0,0.56359371]
[1743347046388,0.15832198,82922.0,82921.0,0.44295121]
[1743347046593,0.15832198,82922.0,82921.0,0.49549371]
[1743347047296,0.15832198,82922.0,82921.0,0.37485121]
[1743347047493,0.15832198,82922.0,82921.0,0.49549371]
[1743347047892,0.15832198,82922.0,82921.0,0.37485121]
[1743347048089,0.55392198,82922.0,82921.0,0.01405121]
[1743347048294,0.55392198,82922.0,82921.0,0.00092]
[1743347048488,0.1206425,82921.0,82920.0,8e-05]
[1743347048689,0.1206483,82918.0,82917.0,0.1206482]
[1743347048888,0.1215283,82918.0,82917.0,0.1215282]
[1743347049090,0.1922283,82918.0,82917.0,0.1215282]
[1743347049898,0.1922283,82918.0,82917.0,0.00088]
[1743347050194,0.1922283,82918.0,82917.0,0.0139274]
[1743347050400,0.1922283,82918.0,82917.0,0.1345757]
[1743347050602,0.1922283,82918.0,82917.0,0.4953757]
[1743347051098,0.07158,82918.0,82917.0,0.4953757]
[1743347051402,0.19422,82918.0,82917.0,0.5651757]
[1743347051597,0.1244,82918.0,82917.0,0.5651757]
[1743347053401,0.2450469,82918.0,82917.0,0.5651757]
[1743347053791,0.2450469,82918.0,82917.0,0.2043757]
[1743347053992,0.2450469,82918.0,82917.0,0.5651757]
[1743347055197,0.1244,82918.0,82917.0,0.5651757]
[1743347055598,0.1215269,82918.0,82917.0,0.5651757]
[1743347056300,0.1939269,82918.0,82917.0,0.5651757]
[1743347058106,0.00088,82918.0,82917.0,0.5651757]
[1743347058308,0.06050188,82922.0,82921.0,0.1206425]
[1743347058309,0.18114468,82922.0,82921.0,0.1206425]
[1743347059005,0.21474468,82922.0,82921.0,0.1206425]
[1743347059199,0.21554468,82922.0,82921.0,0.1938425]
[1743347062996,0.06130188,82922.0,82921.0,0.1938425]
[1743347064709,0.09870188,82922.0,82921.0,0.1938425]
[1743347069824,0.09870188,82922.0,82921.0,0.5546425]
[1743347071012,0.09870188,82922.0,82921.0,0.0372]
[1743347071219,0.1206377,82916.0,82915.0,0.21566153]
[1743347071513,0.4821177,82916.0,82915.0,0.21630153]
[1743347071702,0.1206435,82912.0,82911.0,1e-08]
[1743347071902,0.1206726,82892.0,82891.0,0.00048256]
[1743347072212,0.1206755,82890.0,82889.0,0.01318181]
[1743347072513,0.1206828,82885.0,82884.0,0.1945843]
[1743347072714,0.1217628,82885.0,82884.0,0.1952643]
[1743347073018,0.1217628,82885.0,82884.0,0.72655021]
[1743347073313,0.1217628,82885.0,82884.0,0.73949501]
[1743347074215,0.1207628,82885.0,82884.0,0.73949501]
[1743347074520,0.1207628,82885.0,82884.0,0.74149501]
[1743347075909,0.1207628,82885.0,82884.0,0.74449501]
[1743347076306,0.1207628,82885.0,82884.0,2.24449501]
[1743347076506,0.1196828,82885.0,82884.0,2.24449501]
[1743347077415,0.1196828,82885.0,82884.0,1.7132091]
[1743347077617,0.1207628,82885.0,82884.0,1.7132091]
[1743347084213,0.1196828,82885.0,82884.0,1.7132091]
[1743347085422,0.1207628,82885.0,82884.0,1.7132091]
[1743347085621,0.1207628,82885.0,82884.0,0.2132091]
[1743347086821,0.1207628,82885.0,82884.0,0.9348091]
[1743347088527,0.1196828,82885.0,82884.0,0.9348091]
[1743347089422,0.1207628,82885.0,82884.0,0.9348091]
[1743347089818,0.1196828,82885.0,82884.0,0.9348091]
[1743347090925,0.1196828,82885.0,82884.0,0.2132091]
[1743347091226,0.1196828,82885.0,82884.0,0.9348091]
[1743347093317,0.1207628,82885.0,82884.0,0.9348091]
[1743347093628,0.00108,82885.0,82884.0,0.9348091]
[1743347093834,0.4187,82891.0,82890.0,0.1206755]
[1743347094122,0.41978,82891.0,82890.0,0.1213155]
[1743347094325,0.41978,82891.0,82890.0,0.2299155]
[1743347095017,0.41978,82891.0,82890.0,0.2309155]
[1743347095217,0.64856971,82891.0,82890.0,0.2309155]
[1743347096626,0.52789561,82891.0,82890.0,0.2309155]
[1743347097131,0.64856971,82891.0,82890.0,0.2309155]
[1743347098221,0.52789561,82891.0,82890.0,0.2309155]
[1743347099025,0.10919561,82891.0,82890.0,0.2309155]
[1743347099227,0.10811561,82891.0,82890.0,0.2309155]
[1743347099432,0.1206734,82892.0,82891.0,0.1206726]
[1743347099631,0.1217534,82892.0,82891.0,0.5555126]
[1743347099832,0.00108,82892.0,82891.0,0.5555126]
[1743347101831,0.00108,82892.0,82891.0,0.5565126]
[1743347102127,0.00108,82892.0,82891.0,0.5575126]
[1743347103634,0.07328,82892.0,82891.0,0.5575126]
[1743347104230,0.1939526,82892.0,82891.0,0.5575126]
[1743347105135,0.1939526,82892.0,82891.0,0.9183126]
[1743347105930,0.1939526,82892.0,82891.0,0.1967126]
[1743347106240,0.1939526,82892.0,82891.0,0.9183126]
[1743347106734,0.03688,82892.0,82891.0,0.9183126]
[1743347106936,0.00108,82892.0,82891.0,0.9183126]
[1743347107130,0.00018098,82893.0,82892.0,0.1206726]
[1743347107331,0.00130099,82893.0,82892.0,0.1213526]
[1743347107631,0.00130099,82893.0,82892.0,0.1953526]
[1743347108431,0.00130099,82893.0,82892.0,0.1963526]
[1743347109532,0.00130099,82893.0,82892.0,0.5571526]
[1743347109731,0.00130099,82893.0,82892.0,0.1963526]
[1743347109929,0.00130099,82893.0,82892.0,0.5571526]
[1743347110129,0.00130099,82893.0,82892.0,0.1963526]
[1743347110332,0.00130099,82893.0,82892.0,0.5571526]
[1743347110534,0.00130099,82893.0,82892.0,0.1963526]
[1743347110728,0.00130099,82893.0,82892.0,0.5571526]
[1743347111239,0.00126098,82893.0,82892.0,0.5571526]
[1743347113535,0.21489502,82904.0,82903.0,0.1206566]
[1743347113740,0.21569502,82904.0,82903.0,0.4814566]
[1743347113940,0.21569502,82904.0,82903.0,0.4821366]
[1743347114141,0.21569502,82904.0,82903.0,1.9821366]
[1743347114339,0.21489502,82904.0,82903.0,2.0530366]
[1743347114637,0.24102764,82909.0,82903.0,2.0530366]
[1743347114841,0.24178764,82909.0,82908.0,0.1206493]
[1743347115039,0.18146364,82909.0,82908.0,0.1213293]
[1743347115441,0.18146364,82909.0,82908.0,0.13427295]
[1743347115642,0.18146364,82909.0,82908.0,0.20517295]
[1743347116236,0.30211154,82909.0,82908.0,0.08452365]
[1743347117146,0.33691154,82909.0,82908.0,0.08452365]
[1743347117350,0.33991154,82909.0,82908.0,0.20517295]
[1743347118840,0.03856,82909.0,82908.0,0.20517295]
[1743347119047,0.00376,82909.0,82908.0,0.20517295]
[1743347119246,0.12708,82909.0,82908.0,0.20517295]
[1743347119639,0.2477279,82909.0,82908.0,0.20517295]
[1743347121038,0.1244079,82909.0,82908.0,0.20517295]
[1743347121847,0.1621079,82909.0,82908.0,0.20517295]
[1743347122744,0.1621079,82909.0,82908.0,0.56597295]
[1743347128062,0.00376,82909.0,82908.0,0.56597295]
[1743347128352,0.00376,82909.0,82908.0,2.06597295]
[1743347128649,0.00376,82909.0,82908.0,0.56597295]
[1743347130352,0.0004,82916.0,82915.0,0.1206392]
[1743347130546,0.00112,82916.0,82915.0,0.4822392]
[1743347131057,0.0004,82916.0,82915.0,0.5548392]
[1743347132054,0.0044,82916.0,82915.0,0.5548392]
[1743347133338,0.0052,82916.0,82915.0,0.5548392]
[1743347134943,0.0044,82916.0,82915.0,0.5548392]
[1743347135542,0.0044,82916.0,82915.0,0.56366445]
[1743347135751,0.00512,82916.0,82915.0,0.56366445]
[1743347136952,0.0044,82916.0,82915.0,0.56366445]
[1743347137454,0.00512,82916.0,82915.0,0.56366445]
[1743347137856,0.0044,82916.0,82915.0,0.56366445]
[1743347138348,0.10831738,82921.0,82917.0,0.0603175]
[1743347138543,0.10831738,82921.0,82920.0,0.1206319]
[1743347138746,0.10831738,82921.0,82920.0,0.1213519]
[1743347139051,0.10903738,82921.0,82920.0,0.1213519]
[1743347141469,0.00072,82921.0,82920.0,0.1213519]
[1743347142865,0.00011973,82924.0,82923.0,0.1206275]
[1743347143061,0.00079973,82924.0,82923.0,0.4821875]
[1743347143263,0.00011973,82924.0,82923.0,0.4821875]
[1743347143453,0.00011973,82924.0,82923.0,0.5515875]
[1743347144355,0.00079973,82924.0,82923.0,0.5515875]
[1743347145064,0.12142583,82924.0,82923.0,0.5515875]
[1743347145254,0.15612583,82924.0,82923.0,0.5515875]
[1743347145563,0.03549973,82924.0,82923.0,0.5515875]
[1743347151669,0.15612583,82924.0,82923.0,0.5515875]
[1743347152871,0.00079973,82924.0,82923.0,0.5515875]
[1743347153062,0.00011973,82924.0,82923.0,0.5515875]
[1743347153264,0.00083973,82924.0,82923.0,0.5515875]
[1743347154669,0.00011973,82924.0,82923.0,0.5515875]
[1743347154872,0.00083973,82924.0,82923.0,0.5515875]
[1743347159076,0.00011973,82924.0,82923.0,0.5515875]
[1743347159478,0.00087973,82924.0,82923.0,0.5515875]
[1743347159677,0.00087973,82924.0,82923.0,0.1907875]
[1743347160079,0.00087973,82924.0,82923.0,0.5515875]
[1743347160578,0.00011973,82924.0,82923.0,0.5515875]
[1743347161080,0.00075973,82924.0,82923.0,0.5515875]
[1743347161276,0.00075973,82924.0,82923.0,0.1907875]
[1743347161473,0.00075973,82924.0,82923.0,0.5515875]
[1743347162671,0.00011973,82924.0,82923.0,0.5515875]
[1743347163080,0.12146583,82924.0,82923.0,0.5515875]
[1743347163279,0.12146583,82924.0,82923.0,0.43096]
[1743347163481,0.12146583,82924.0,82923.0,0.00076]
[1743347163783,0.12146583,82924.0,82923.0,0.1213875]
[1743347163980,0.20006583,82924.0,82923.0,0.00076]
[1743347164282,0.1206275,82923.0,82922.0,0.1207084]
[1743347164471,0.1214275,82923.0,82922.0,0.1215084]
[1743347164671,0.2000275,82923.0,82922.0,0.1215084]
[1743347168086,0.47531995,82923.0,82922.0,0.1215084]
[1743347168381,0.47531995,82923.0,82922.0,0.00088]
[1743347168584,0.0603161,82920.0,82911.0,0.12082488]
[1743347168783,0.1206435,82912.0,82911.0,0.12154488]
[1743347168986,0.1212835,82912.0,82911.0,0.12154488]
[1743347170280,0.1238,82912.0,82911.0,0.12154488]
[1743347170680,0.2438035,82912.0,82911.0,0.12154488]
[1743347170882,0.2445635,82912.0,82911.0,0.12154488]
[1743347171079,0.12392,82912.0,82911.0,0.12154488]
[1743347171398,0.12316,82912.0,82911.0,0.12154488]
[1743347171588,0.12396,82912.0,82911.0,0.12154488]
[1743347171783,0.2446035,82912.0,82911.0,1.62154488]
[1743347171996,0.2438035,82912.0,82911.0,1.62154488]
[1743347175281,0.2438035,82912.0,82911.0,1.98234488]
[1743347176087,0.24102094,82923.0,82916.0,0.0603182]
[1743347176288,0.24102094,82923.0,82922.0,0.120629]
[1743347176289,0.30205544,82923.0,82922.0,0.120629]
[1743347176485,0.42449544,82923.0,82922.0,0.121389]
[1743347176683,0.42525544,82923.0,82922.0,0.121389]
[1743347176883,0.42525544,82923.0,82922.0,0.00076]
[1743347177087,0.50165544,82923.0,82922.0,0.00076]
[1743347177404,0.86245544,82923.0,82922.0,0.00076]
[1743347177583,0.1206333,82920.0,82919.0,0.1206332]
[1743347177892,0.1213933,82920.0,82919.0,0.1606932]
[1743347178188,0.1979933,82920.0,82919.0,0.1606932]
[1743347178385,0.1213933,82920.0,82919.0,0.5584932]
[1743347180692,0.00076,82920.0,82919.0,0.5584932]
[1743347180891,0.1213919,82920.0,82919.0,0.5584932]
[1743347181286,0.1213919,82920.0,82919.0,0.1976932]
[1743347181492,0.1213919,82920.0,82919.0,0.5584932]
[1743347183590,0.00076,82920.0,82919.0,0.5584932]
[1743347183984,0.14452313,82922.0,82921.0,0.1206304]
[1743347184186,0.14452313,82922.0,82921.0,0.1213504]
[1743347184187,0.14524313,82922.0,82921.0,0.1213504]
[1743347184587,0.14524313,82922.0,82921.0,0.1992504]
[1743347184789,0.14464286,82924.0,82923.0,0.1206275]
[1743347185096,0.18070654,82928.0,82927.0,0.1206217]
[1743347185395,0.18170654,82928.0,82927.0,1.6216217]
[1743347185583,0.18070654,82928.0,82927.0,1.6216217]
[1743347188789,0.18070654,82928.0,82927.0,2.3432217]
[1743347188990,0.0004,82932.0,82931.0,0.1206159]
[1743347189295,0.0004,82932.0,82931.0,0.1215359]
[1743347189787,0.0004,82932.0,82931.0,0.8431359]
[1743347190097,0.0004,82932.0,82931.0,0.9184359]
[1743347197297,0.12308,82945.0,82931.0,0.79782]
[1743347197497,0.12308,82945.0,82944.0,0.481397]
[1743347197799,0.2445955,82945.0,82944.0,0.482317]
[1743347198100,0.2823955,82945.0,82944.0,0.482317]
[1743347198605,0.00092,82945.0,82944.0,0.561517]
[1743347198815,0.12308,82949.0,82947.0,0.1205926]
[1743347198993,0.00132,82948.0,82947.0,0.1215126]
[1743347199602,0.0004,82948.0,82947.0,0.1586126]
[1743347199804,0.00132,82948.0,82947.0,0.1586126]
[1743347201506,0.00132,82948.0,82947.0,0.17115594]
[1743347201704,0.037,82959.0,82952.0,0.0602926]
[1743347201903,0.1575802,82959.0,82958.0,0.4813766]
[1743347202296,0.1582202,82959.0,82958.0,0.4813766]